fUST/lending_fUST_20240227
["ID","MTS","AMOUNT","RATE_DAILY","PERIOD"]
[315347728,1708985443819,-500.0,0.00020821,2]
[315347729,1708985443829,-500.0,0.00020821,2]
[315347731,1708985443838,-341.76252739,0.00020821,2]
[315347733,1708985443847,-500.0,0.00020821,2]
[315347735,1708985443858,-1544.97,0.00020821,2]
[315347737,1708985443867,-500.0,0.00020821,2]
[315347739,1708985443876,-569.52,0.00020821,2]
[315347741,1708985443885,-3615.0,0.00020821,2]
[315347743,1708985443895,-1728.11,0.00020821,2]
[315347745,1708985443904,-16459.07,0.00020821,2]
[315347747,1708985443913,-1183.28,0.00020821,2]
[315347749,1708985443922,-500.0,0.00020821,2]
[315347751,1708985443932,-1393.14,0.00020821,2]
[315347753,1708985443941,-500.0,0.00020821,2]
[315347755,1708985443950,-609.4828341,0.00020821,2]
[315347757,1708985443959,-1790.68,0.00020821,2]
[315347759,1708985443968,-6510.06,0.00020821,2]
[315347761,1708985443978,-837.95,0.00020821,2]
[315347763,1708985443992,-500.0,0.00020821,2]
[315347765,1708985444002,-1072.96,0.00020821,2]
[315347767,1708985444014,-3044.48,0.00020821,2]
[315347768,1708985444023,-836.22,0.00020821,2]
[315347770,1708985444033,-1384.6,0.00020821,2]
[315347773,1708985444043,-609.18,0.00020821,2]
[315347774,1708985444052,-587.39,0.00020821,2]
[315347776,1708985444062,-837.42,0.00020821,2]
[315347778,1708985444072,-1636.01,0.00020821,2]
[315347780,1708985444081,-16398.14,0.00020821,2]
[315347782,1708985444090,-2350.52,0.00020821,2]
[315347784,1708985444100,-3146.89,0.00020821,2]
[315347786,1708985444109,-500.0,0.00020821,2]
[315347788,1708985444118,-1725.21,0.00020821,2]
[315347790,1708985444128,-2517.74,0.00020821,2]
[315347792,1708985444138,-1992.99,0.00020821,2]
[315347794,1708985444147,-2352.08,0.00020821,2]
[315347796,1708985444156,-1897.11,0.00020821,2]
[315347798,1708985444166,-500.0,0.00020821,2]
[315347800,1708985444175,-9961.08,0.00020821,2]
[315347802,1708985444184,-50000.0,0.00020829,2]
[315347804,1708985444194,-1000.0,0.00020847,2]
[315347806,1708985444203,-50000.0,0.00020856,2]
[315347808,1708985444212,-500.0,0.00020869,2]
[315347810,1708985444222,-500.0,0.00020869,2]
[315347812,1708985444231,-500.0,0.00020869,2]
[315347813,1708985444240,-500.0,0.00020869,2]
[315347815,1708985444249,-500.0,0.00020869,2]
[315347817,1708985444261,-500.0,0.00020869,2]
[315347819,1708985444270,-500.0,0.00020869,2]
[315347821,1708985444279,-403.01106879,0.00020869,2]
[315347823,1708985444288,-500.0,0.00020869,2]
[315347825,1708985444297,-500.0,0.00020869,2]
[315347827,1708985444307,-500.0,0.00020869,2]
[315347829,1708985444316,-500.0,0.00020869,2]
[315347831,1708985444326,-500.0,0.00020869,2]
[315347833,1708985444335,-500.0,0.00020869,2]
[315347835,1708985444344,-500.0,0.00020869,2]
[315347837,1708985444352,-500.0,0.00020869,2]
[315347839,1708985444362,-50000.0,0.0002087,2]
[315347841,1708985444371,-19458.66648589,0.00020883,2]
[315347843,1708985444380,-50000.0,0.00020885,2]
[315347845,1708985444390,-43930.17062384,0.00020892,2]
[315347855,1708985444480,-795.25274607,0.00020892,2]
[315347866,1708985444580,-500.0,0.00019178,2]
[315347868,1708985444589,-263.59512221,0.00019178,2]
[315347877,1708985444668,-236.40487779,0.00019178,2]
[315347879,1708985444678,-500.0,0.00019178,2]
[315347880,1708985444688,-12128.05,0.00019442,3]
[315347882,1708985444697,-454.2851842,0.00019998,2]
[315347885,1708985444710,-45.7148158,0.00019998,2]
[315347887,1708985444721,-256.44210122,0.00019998,2]
[315347889,1708985444730,-2263.2776242,0.00020892,2]
[315347891,1708985444742,-4267.39575965,0.00020892,2]
[315347893,1708985444751,-234.3646,0.00020895,2]
[315347895,1708985444762,-2463.51589487,0.000209,2]
[315347897,1708985444772,-306.0,0.00020904,2]
[315347899,1708985444783,-1000.0,0.00020906,2]
[315347901,1708985444793,-50000.0,0.00020911,2]
[315347904,1708985444802,-1000.0,0.0002095,2]
[315347906,1708985444816,-50000.0,0.00020952,2]
[315347909,1708985444825,-5000.0,0.00020952,2]
[315347912,1708985444835,-30929.48680612,0.00020957,2]
[315347915,1708985444846,-2643.18278014,0.00020957,2]
[315347917,1708985444858,-827.03928114,0.00020957,2]
[315347927,1708985444949,-1246.50810772,0.0002096,2]
[315347929,1708985444959,-166.666666,0.00020973,2]
[315347931,1708985444970,-5000.0,0.00020989,2]
[315347933,1708985444979,-5000.0,0.00020989,2]
[315347935,1708985444988,-1419.25470807,0.00020998,2]
[315348109,1708985446662,-500.0,0.00019178,2]
[315348112,1708985446672,-500.0,0.00019452,2]
[315348113,1708985446682,-194.86615274,0.00019726,2]
[315348115,1708985446691,-17216.96128672,0.00020998,2]
[315348117,1708985446701,-632.21031254,0.00020998,2]
[315348119,1708985446710,-253.26527282,0.00020999,2]
[315348121,1708985446720,-160.0,0.00020999,2]
[315348123,1708985446729,-160.0,0.00020999,2]
[315348125,1708985446739,-160.0,0.00020999,2]
[315348127,1708985446748,-235.94829351,0.00020999,2]
[315348129,1708985446758,-1389.56409544,0.00020999,2]
[315348131,1708985446766,-399.333294,0.00020999,2]
[315348133,1708985446775,-500.0,0.00020999,2]
[315348134,1708985446784,-500.0,0.00020999,2]
[315348135,1708985446793,-500.0,0.00020999,2]
[315348136,1708985446803,-500.0,0.00020999,2]
[315348137,1708985446814,-500.0,0.00020999,2]
[315348138,1708985446823,-500.0,0.00020999,2]
[315348139,1708985446833,-500.0,0.00020999,2]
[315348140,1708985446842,-500.0,0.00020999,2]
[315348141,1708985446852,-500.0,0.00020999,2]
[315348142,1708985446861,-500.0,0.00020999,2]
[315348143,1708985446870,-213.861249,0.00020999,2]
[315348144,1708985446879,-500.0,0.00020999,2]
[315348145,1708985446889,-500.0,0.00020999,2]
[315348146,1708985446898,-500.0,0.00020999,2]
[315348147,1708985446908,-399.333294,0.00020999,2]
[315348148,1708985446917,-451113.36916985,0.00021,2]
[315348254,1708985448646,-280.4,0.00019177,2]
[315352278,1708986637769,-1718.77128395,0.00018103,2]
[315352279,1708986637778,-1112.17765326,0.00018104,2]
[315352280,1708986637862,-284.87583971,0.00018104,2]
[315352281,1708986637871,-24900.0,0.00018108,2]
[315352282,1708986637881,-1034.25073327,0.000189,2]
[315352283,1708986637890,-546.76,0.0001899,3]
[315352284,1708986637899,-75239.54221947,0.00019,2]
[315352285,1708986637908,-428.51000132,0.00019078,2]
[315352286,1708986637918,-105054.63215919,0.00019168,2]
[315352287,1708986637927,-16402.87119228,0.00019176,2]
[315352288,1708986637936,-883.13049723,0.00019176,2]
[315352289,1708986637945,-2433.2587341,0.00019177,2]
[315352290,1708986637955,-486.2735679,0.00019177,2]
[315352291,1708986637964,-486.2735679,0.00019177,2]
[315352292,1708986637973,-646.47874491,0.00019178,2]
[315352293,1708986637983,-500.0,0.00019178,2]
[315352294,1708986637993,-500.0,0.00019178,2]
[315352295,1708986638001,-500.0,0.00019178,2]
[315352296,1708986638011,-500.0,0.00019178,2]
[315352297,1708986638021,-917.42,0.00019178,2]
[315352298,1708986638029,-569.02009229,0.00019178,2]
[315352299,1708986638039,-500.0,0.00019178,2]
[315352300,1708986638048,-500.0,0.00019178,2]
[315352301,1708986638057,-500.0,0.00019178,2]
[315352302,1708986638066,-501.07626602,0.00019178,2]
[315352303,1708986638075,-616.16147576,0.00019178,2]
[315352304,1708986638084,-500.0,0.00019178,2]
[315352305,1708986638093,-500.0,0.00019178,2]
[315352306,1708986638102,-405.80118565,0.00019178,2]
[315352307,1708986638111,-500.0,0.00019178,2]
[315352308,1708986638120,-500.0,0.00019178,2]
[315352309,1708986638130,-500.0,0.00019178,2]
[315352310,1708986638139,-500.0,0.00019178,2]
[315352311,1708986638150,-500.0,0.00019178,2]
[315352312,1708986638160,-599.32113088,0.00019178,2]
[315352313,1708986638169,-501.25122817,0.00019178,2]
[315352314,1708986638178,-306.73743767,0.00019178,2]
[315352315,1708986638189,-1026.71,0.00019178,2]
[315352316,1708986638198,-500.0,0.00019178,2]
[315352317,1708986638207,-500.0,0.00019178,2]
[315352318,1708986638216,-500.0,0.00019178,2]
[315352319,1708986638228,-500.0,0.00019178,2]
[315352320,1708986638238,-500.0,0.00019178,2]
[315352321,1708986638247,-500.0,0.00019178,2]
[315352322,1708986638256,-500.0,0.00019178,2]
[315352323,1708986638266,-500.0,0.00019178,2]
[315352324,1708986638276,-500.0,0.00019178,2]
[315352325,1708986638285,-497.00174819,0.00019178,2]
[315352326,1708986638295,-500.0,0.00019178,2]
[315352327,1708986638304,-500.0,0.00019178,2]
[315352328,1708986638313,-500.0,0.00019178,2]
[315352329,1708986638323,-500.0,0.00019178,2]
[315352330,1708986638332,-500.0,0.00019178,2]
[315352331,1708986638341,-500.0,0.00019178,2]
[315352332,1708986638350,-500.0,0.00019178,2]
[315352333,1708986638360,-500.0,0.00019178,2]
[315352334,1708986638368,-500.0,0.00019178,2]
[315352335,1708986638377,-500.0,0.00019178,2]
[315352336,1708986638387,-500.0,0.00019178,2]
[315352337,1708986638396,-500.0,0.00019178,2]
[315352338,1708986638405,-500.0,0.00019178,2]
[315352339,1708986638414,-500.0,0.00019178,2]
[315352340,1708986638423,-500.0,0.00019178,2]
[315352341,1708986638432,-500.0,0.00019178,2]
[315352342,1708986638442,-500.0,0.00019178,2]
[315352343,1708986638451,-500.0,0.00019178,2]
[315352344,1708986638460,-500.0,0.00019178,2]
[315352345,1708986638469,-416.45003183,0.00019178,2]
[315352346,1708986638478,-2819.53,0.00019178,2]
[315352347,1708986638488,-1269.69,0.00019178,2]
[315352348,1708986638497,-500.0,0.00019178,2]
[315352349,1708986638506,-656.85,0.00019178,2]
[315352350,1708986638516,-500.0,0.00019178,2]
[315352351,1708986638525,-1780.59,0.00019178,2]
[315352352,1708986638534,-500.0,0.00019178,2]
[315352353,1708986638543,-801.38,0.00019178,2]
[315352354,1708986638552,-285.47079158,0.00019178,2]
[315352355,1708986638561,-1326.91,0.00019178,2]
[315352356,1708986638571,-500.0,0.00019178,2]
[315352357,1708986638580,-500.0,0.00019178,2]
[315352358,1708986638588,-500.0,0.00019178,2]
[315352359,1708986638597,-500.0,0.00019178,2]
[315352360,1708986638606,-500.0,0.00019178,2]
[315352361,1708986638615,-501.06102034,0.00019178,2]
[315352362,1708986638625,-500.0,0.00019178,2]
[315352363,1708986638634,-500.0,0.00019178,2]
[315352364,1708986638644,-500.0,0.00019178,2]
[315352365,1708986638654,-500.0,0.00019178,2]
[315352366,1708986638664,-1001.44015609,0.00019178,2]
[315352367,1708986638674,-500.0,0.00019178,2]
[315352368,1708986638684,-500.0,0.00019178,2]
[315352369,1708986638693,-500.0,0.00019178,2]
[315352370,1708986638702,-500.0,0.00019178,2]
[315352371,1708986638712,-522.16106929,0.00019178,2]
[315352372,1708986638721,-500.0,0.00019178,2]
[315352373,1708986638730,-500.0,0.00019178,2]
[315352374,1708986638739,-500.0,0.00019178,2]
[315352375,1708986638748,-500.0,0.00019178,2]
[315352376,1708986638757,-500.0,0.00019178,2]
[315352377,1708986638766,-500.0,0.00019178,2]
[315352378,1708986638776,-500.0,0.00019178,2]
[315352379,1708986638785,-500.0,0.00019178,2]
[315352380,1708986638795,-500.0,0.00019178,2]
[315352381,1708986638804,-500.0,0.00019178,2]
[315352382,1708986638813,-500.0,0.00019178,2]
[315352383,1708986638822,-500.0,0.00019178,2]
[315352384,1708986638832,-1534.47,0.00019178,2]
[315352385,1708986638840,-500.0,0.00019178,2]
[315352386,1708986638850,-500.0,0.00019178,2]
[315352387,1708986638859,-500.0,0.00019178,2]
[315352388,1708986638868,-500.0,0.00019178,2]
[315352389,1708986638878,-500.0,0.00019178,2]
[315352390,1708986638887,-500.0,0.00019178,2]
[315352391,1708986638896,-515.24992095,0.00019178,2]
[315352392,1708986638906,-500.0,0.00019178,2]
[315352393,1708986638915,-500.0,0.00019178,2]
[315352394,1708986638924,-500.0,0.00019178,2]
[315352395,1708986638933,-618.09332603,0.00019178,2]
[315352396,1708986638944,-500.0,0.00019178,2]
[315352397,1708986638954,-500.0,0.00019178,2]
[315352398,1708986638963,-500.0,0.00019178,2]
[315352399,1708986638972,-631.67993521,0.00019178,2]
[315352400,1708986638982,-500.0,0.00019178,2]
[315352401,1708986638991,-500.0,0.00019178,2]
[315352402,1708986639000,-500.0,0.00019178,2]
[315352403,1708986639009,-1224.55,0.00019178,2]
[315352404,1708986639019,-500.0,0.00019178,2]
[315352405,1708986639029,-332.25830118,0.00019178,2]
[315352406,1708986639037,-500.0,0.00019178,2]
[315352407,1708986639047,-500.0,0.00019178,2]
[315352408,1708986639056,-500.0,0.00019178,2]
[315352409,1708986639065,-500.0,0.00019178,2]
[315352410,1708986639074,-500.0,0.00019178,2]
[315352411,1708986639083,-500.0,0.00019178,2]
[315352412,1708986639092,-500.0,0.00019178,2]
[315352413,1708986639102,-500.0,0.00019178,2]
[315352414,1708986639111,-500.0,0.00019178,2]
[315352415,1708986639121,-500.0,0.00019178,2]
[315352416,1708986639130,-500.0,0.00019178,2]
[315352417,1708986639139,-500.0,0.00019178,2]
[315352418,1708986639153,-17115.04,0.00019178,2]
[315352419,1708986639163,-647.66354051,0.00019178,2]
[315352420,1708986639172,-500.0,0.00019178,2]
[315352421,1708986639182,-500.0,0.00019178,2]
[315352422,1708986639192,-500.0,0.00019178,2]
[315352423,1708986639202,-500.0,0.00019178,2]
[315352424,1708986639212,-500.0,0.00019178,2]
[315352425,1708986639222,-500.0,0.00019178,2]
[315352426,1708986639233,-500.0,0.00019178,2]
[315352427,1708986639243,-500.0,0.00019178,2]
[315352428,1708986639253,-395.92,0.00019178,2]
[315352429,1708986639262,-500.0,0.00019178,2]
[315352430,1708986639273,-629.55043623,0.00019178,2]
[315352431,1708986639282,-500.0,0.00019178,2]
[315352432,1708986639291,-510.83557812,0.00019178,2]
[315352433,1708986639301,-907.39,0.00019178,2]
[315352434,1708986639310,-500.0,0.00019178,2]
[315352435,1708986639319,-500.0,0.00019178,2]
[315352436,1708986639328,-521.26886401,0.00019178,2]
[315352437,1708986639337,-500.0,0.00019178,2]
[315352438,1708986639346,-2018.18,0.00019178,2]
[315352439,1708986639355,-1573.46,0.00019178,2]
[315352440,1708986639364,-500.0,0.00019178,2]
[315352441,1708986639373,-500.0,0.00019178,2]
[315352442,1708986639382,-500.0,0.00019178,2]
[315352443,1708986639391,-949.56,0.00019178,2]
[315352444,1708986639401,-1206.9,0.00019178,2]
[315352445,1708986639409,-500.0,0.00019178,2]
[315352446,1708986639419,-500.0,0.00019178,2]
[315352447,1708986639428,-647.33,0.00019178,2]
[315352448,1708986639437,-500.0,0.00019178,2]
[315352449,1708986639446,-7320.56,0.00019178,2]
[315352450,1708986639455,-500.0,0.00019178,2]
[315352451,1708986639464,-659.55,0.00019178,2]
[315352452,1708986639474,-500.0,0.00019178,2]
[315352453,1708986639483,-500.0,0.00019178,2]
[315352454,1708986639493,-500.0,0.00019178,2]
[315352455,1708986639502,-3358.79,0.00019178,2]
[315352456,1708986639511,-667.3,0.00019178,2]
[315352457,1708986639521,-1701.35,0.00019178,2]
[315352458,1708986639530,-500.0,0.00019178,2]
[315352459,1708986639539,-500.0,0.00019178,2]
[315352460,1708986639548,-500.0,0.00019178,2]
[315352461,1708986639557,-500.0,0.00019178,2]
[315352462,1708986639566,-500.0,0.00019178,2]
[315352463,1708986639576,-501.10627301,0.00019178,2]
[315352464,1708986639585,-500.0,0.00019178,2]
[315352465,1708986639594,-3540.73,0.00019178,2]
[315352466,1708986639604,-2537.06,0.00019178,2]
[315352467,1708986639613,-268.97832651,0.00019178,2]
[315352468,1708986639623,-500.0,0.00019178,2]
[315352469,1708986639632,-17851.83,0.00019178,2]
[315352470,1708986639641,-500.0,0.00019178,2]
[315352471,1708986639650,-500.0,0.00019178,2]
[315352472,1708986639660,-432.44409481,0.00019178,2]
[315352473,1708986639669,-2853.03,0.00019178,2]
[315352474,1708986639678,-449.10144349,0.00019178,2]
[315352475,1708986639687,-500.0,0.00019178,2]
[315352476,1708986639696,-1874.02,0.00019178,2]
[315352477,1708986639705,-500.0,0.00019178,2]
[315352478,1708986639714,-500.0,0.00019178,2]
[315352479,1708986639724,-500.0,0.00019178,2]
[315352480,1708986639733,-500.0,0.00019178,2]
[315352481,1708986639840,-2067.98,0.00019178,2]
[315352482,1708986639850,-413.86336269,0.00019178,2]
[315352483,1708986639859,-500.0,0.00019178,2]
[315352484,1708986639869,-500.0,0.00019178,2]
[315352485,1708986639880,-1000.0,0.00019178,2]
[315352486,1708986639889,-2056.01,0.00019178,2]
[315352487,1708986639898,-500.0,0.00019178,2]
[315352488,1708986639908,-500.0,0.00019178,2]
[315352489,1708986639917,-500.0,0.00019178,2]
[315352490,1708986639926,-500.0,0.00019178,2]
[315352491,1708986639936,-258.5246545,0.00019178,2]
[315352492,1708986639945,-623.53895881,0.00019178,2]
[315352493,1708986639955,-500.0,0.00019178,2]
[315352494,1708986639965,-500.0,0.00019178,2]
[315352495,1708986639974,-502.2834176,0.00019178,2]
[315352496,1708986639983,-2537.49,0.00019178,2]
[315352497,1708986639993,-500.0,0.00019178,2]
[315352499,1708986640002,-581.87051322,0.00019178,2]
[315352501,1708986640012,-500.0,0.00019178,2]
[315352502,1708986640023,-500.0,0.00019178,2]
[315352503,1708986640032,-500.54112541,0.00019178,2]
[315352504,1708986640042,-500.0,0.00019178,2]
[315352505,1708986640051,-500.0,0.00019178,2]
[315352506,1708986640061,-500.0,0.00019178,2]
[315352507,1708986640070,-543.31285923,0.00019178,2]
[315352508,1708986640079,-500.0,0.00019178,2]
[315352509,1708986640089,-500.0,0.00019178,2]
[315352510,1708986640098,-500.0,0.00019178,2]
[315352511,1708986640107,-10695.9,0.00019178,2]
[315352513,1708986640116,-500.0,0.00019178,2]
[315352514,1708986640125,-500.0,0.00019178,2]
[315352516,1708986640134,-500.0,0.00019178,2]
[315352517,1708986640145,-500.0,0.00019178,2]
[315352518,1708986640159,-500.0,0.00019178,2]
[315352519,1708986640169,-595.11,0.00019178,2]
[315352520,1708986640178,-500.0,0.00019178,2]
[315352521,1708986640188,-500.0,0.00019178,2]
[315352522,1708986640198,-500.0,0.00019178,2]
[315352523,1708986640207,-1849.52,0.00019178,2]
[315352524,1708986640216,-500.40993125,0.00019178,2]
[315352525,1708986640227,-501.78484159,0.00019178,2]
[315352527,1708986640236,-500.0,0.00019178,2]
[315352529,1708986640245,-500.0,0.00019178,2]
[315352531,1708986640255,-3759.81,0.00019178,2]
[315352533,1708986640264,-165.875704,0.00019178,2]
[315352534,1708986640274,-167.41212,0.00019178,2]
[315352536,1708986640283,-166.666666,0.00019178,2]
[315352538,1708986640293,-168.08212,0.00019178,2]
[315352540,1708986640302,-1728.0,0.000194,2]
[315352541,1708986640311,-500.0,0.00019451,2]
[315352543,1708986640320,-500.0,0.00019451,2]
[315352545,1708986640329,-500.0,0.00019451,2]
[315352547,1708986640339,-500.0,0.00019451,2]
[315352549,1708986640348,-500.0,0.00019451,2]
[315352550,1708986640357,-500.0,0.00019451,2]
[315352552,1708986640366,-500.0,0.00019452,2]
[315352554,1708986640376,-500.0,0.00019452,2]
[315352556,1708986640385,-500.0,0.00019452,2]
[315352557,1708986640394,-917.42,0.00019452,2]
[315352559,1708986640403,-500.0,0.00019452,2]
[315352561,1708986640413,-429.14374354,0.00019452,2]
[315352562,1708986640422,-500.0,0.00019452,2]
[315352563,1708986640431,-557.07689794,0.00019452,2]
[315352564,1708986640441,-1026.71,0.00019452,2]
[315352565,1708986640450,-500.0,0.00019452,2]
[315352566,1708986640458,-356.05453121,0.00019452,2]
[315352567,1708986640468,-500.0,0.00019452,2]
[315352568,1708986640477,-500.0,0.00019452,2]
[315352569,1708986640486,-500.0,0.00019452,2]
[315352570,1708986640495,-500.0,0.00019452,2]
[315352572,1708986640504,-500.0,0.00019452,2]
[315352573,1708986640513,-500.0,0.00019452,2]
[315352574,1708986640523,-500.0,0.00019452,2]
[315352575,1708986640533,-500.0,0.00019452,2]
[315352576,1708986640543,-500.0,0.00019452,2]
[315352577,1708986640552,-500.0,0.00019452,2]
[315352578,1708986640561,-500.0,0.00019452,2]
[315352579,1708986640570,-500.0,0.00019452,2]
[315352580,1708986640579,-500.0,0.00019452,2]
[315352581,1708986640588,-500.0,0.00019452,2]
[315352582,1708986640598,-307.43320476,0.00019452,2]
[315352583,1708986640607,-520.13908972,0.00019452,2]
[315352584,1708986640617,-2819.53,0.00019452,2]
[315352585,1708986640627,-500.0,0.00019452,2]
[315352586,1708986640637,-1269.69,0.00019452,2]
[315352587,1708986640646,-656.85,0.00019452,2]
[315352588,1708986640656,-500.0,0.00019452,2]
[315352589,1708986640666,-1780.59,0.00019452,2]
[315352590,1708986640675,-500.0,0.00019452,2]
[315352591,1708986640685,-801.38,0.00019452,2]
[315352592,1708986640695,-1326.91,0.00019452,2]
[315352593,1708986640704,-612.89728722,0.00019452,2]
[315352594,1708986640714,-500.0,0.00019452,2]
[315352595,1708986640723,-500.0,0.00019452,2]
[315352596,1708986640733,-559.01,0.00019452,2]
[315352597,1708986640742,-500.0,0.00019452,2]
[315352598,1708986640751,-500.0,0.00019452,2]
[315352599,1708986640761,-500.0,0.00019452,2]
[315352600,1708986640772,-290.39303171,0.00019452,2]
[315352601,1708986640782,-510.36105547,0.00019452,2]
[315352602,1708986640790,-500.0,0.00019452,2]
[315352603,1708986640799,-501.0634752,0.00019452,2]
[315352604,1708986640809,-500.0,0.00019452,2]
[315352605,1708986640818,-500.0,0.00019452,2]
[315352606,1708986640827,-500.0,0.00019452,2]
[315352607,1708986640837,-500.0,0.00019452,2]
[315352608,1708986640846,-500.0,0.00019452,2]
[315352609,1708986640855,-500.0,0.00019452,2]
[315352610,1708986640865,-206.9662042,0.00019452,2]
[315352611,1708986640874,-536.17501023,0.00019452,2]
[315352612,1708986640883,-1534.47,0.00019452,2]
[315352613,1708986640893,-500.0,0.00019452,2]
[315352614,1708986640902,-500.0,0.00019452,2]
[315352615,1708986640911,-500.0,0.00019452,2]
[315352616,1708986640921,-500.0,0.00019452,2]
[315352617,1708986640931,-500.0,0.00019452,2]
[315352618,1708986640940,-500.0,0.00019452,2]
[315352619,1708986640949,-1224.55,0.00019452,2]
[315352620,1708986640958,-500.0,0.00019452,2]
[315352621,1708986640967,-500.0,0.00019452,2]
[315352622,1708986640976,-500.0,0.00019452,2]
[315352623,1708986640985,-500.0,0.00019452,2]
[315352624,1708986640994,-500.0,0.00019452,2]
[315352625,1708986641003,-500.0,0.00019452,2]
[315352626,1708986641012,-500.0,0.00019452,2]
[315352627,1708986641023,-500.0,0.00019452,2]
[315352628,1708986641032,-17115.04,0.00019452,2]
[315352629,1708986641041,-500.0,0.00019452,2]
[315352630,1708986641050,-500.0,0.00019452,2]
[315352631,1708986641059,-500.0,0.00019452,2]
[315352632,1708986641068,-500.0,0.00019452,2]
[315352633,1708986641078,-500.0,0.00019452,2]
[315352635,1708986641091,-500.0,0.00019452,2]
[315352636,1708986641100,-500.0,0.00019452,2]
[315352637,1708986641109,-500.0,0.00019452,2]
[315352638,1708986641118,-500.0,0.00019452,2]
[315352639,1708986641127,-907.39,0.00019452,2]
[315352640,1708986641137,-500.0,0.00019452,2]
[315352641,1708986641146,-500.0,0.00019452,2]
[315352642,1708986641159,-500.0,0.00019452,2]
[315352643,1708986641169,-2018.18,0.00019452,2]
[315352644,1708986641178,-1573.46,0.00019452,2]
[315352645,1708986641188,-500.0,0.00019452,2]
[315352646,1708986641197,-500.0,0.00019452,2]
[315352647,1708986641207,-949.56,0.00019452,2]
[315352648,1708986641219,-1206.9,0.00019452,2]
[315352649,1708986641229,-500.0,0.00019452,2]
[315352650,1708986641238,-647.33,0.00019452,2]
[315352651,1708986641247,-7320.56,0.00019452,2]
[315352652,1708986641257,-659.55,0.00019452,2]
[315352653,1708986641266,-500.0,0.00019452,2]
[315352654,1708986641275,-500.0,0.00019452,2]
[315352655,1708986641285,-500.0,0.00019452,2]
[315352656,1708986641294,-3358.79,0.00019452,2]
[315352657,1708986641303,-667.3,0.00019452,2]
[315352658,1708986641312,-1701.35,0.00019452,2]
[315352659,1708986641321,-500.0,0.00019452,2]
[315352660,1708986641331,-500.0,0.00019452,2]
[315352661,1708986641341,-500.0,0.00019452,2]
[315352662,1708986641350,-502.11470017,0.00019452,2]
[315352663,1708986641359,-500.0,0.00019452,2]
[315352664,1708986641369,-500.0,0.00019452,2]
[315352665,1708986641378,-3540.73,0.00019452,2]
[315352666,1708986641387,-2537.06,0.00019452,2]
[315352667,1708986641396,-500.0,0.00019452,2]
[315352668,1708986641405,-17851.83,0.00019452,2]
[315352669,1708986641414,-500.0,0.00019452,2]
[315352670,1708986641423,-500.0,0.00019452,2]
[315352671,1708986641432,-2853.03,0.00019452,2]
[315352672,1708986641442,-500.0,0.00019452,2]
[315352673,1708986641451,-1874.02,0.00019452,2]
[315352674,1708986641460,-500.0,0.00019452,2]
[315352675,1708986641469,-500.0,0.00019452,2]
[315352676,1708986641479,-2067.98,0.00019452,2]
[315352677,1708986641488,-500.0,0.00019452,2]
[315352678,1708986641497,-1000.0,0.00019452,2]
[315352679,1708986641506,-2056.01,0.00019452,2]
[315352680,1708986641516,-500.0,0.00019452,2]
[315352681,1708986641526,-500.0,0.00019452,2]
[315352682,1708986641534,-500.0,0.00019452,2]